[Event "Titled Tuesday Blitz October 11 Late 2022"]
[White "Hemam, Moulaye Brahim"]
[Black "Sarkar, Justin"]
[WhiteFideId "19600054"]
[BlackFideId "2010011"]
[WhiteElo "2088"]
[BlackElo "2250"]
[Result "0-1"]
[Round "09"]
[TimeControl "180+1"]
[Date "2022.10.12"]
[WhiteClock "0:00:23"]
[BlackClock "0:00:05"]

1. e4 {[%clk 0:02:59]}  e5 {[%clk 0:02:56]} 2. Nf3 {[%clk 0:02:57]}  Nc6 {[%clk 0:02:55]} 3. Bc4 {[%clk 0:02:56]}  Nd4 {[%clk 0:02:53]} 4. c3 {[%clk 0:02:52]}  Nxf3+ {[%clk 0:02:50]} 5. Qxf3 {[%clk 0:02:53]}  Nf6 {[%clk 0:02:49]} 6. h3 {[%clk 0:02:50]}  c6 {[%clk 0:02:38]} 7. Bb3 {[%clk 0:02:48]}  d5 {[%clk 0:02:35]} 8. d3 {[%clk 0:02:46]}  h6 {[%clk 0:02:27]} 9. O-O {[%clk 0:02:43]}  Be6 {[%clk 0:02:13]} 10. Bc2 {[%clk 0:02:37]}  Bd6 {[%clk 0:02:03]} 11. Re1 {[%clk 0:02:36]}  O-O {[%clk 0:01:58]} 12. Nd2 {[%clk 0:02:35]}  Nh7 {[%clk 0:01:41]} 13. Nf1 {[%clk 0:02:32]}  f5 {[%clk 0:01:38]} 14. exf5 {[%clk 0:02:27]}  Bxf5 {[%clk 0:01:38]} 15. Qe2 {[%clk 0:02:23]}  Qd7 {[%clk 0:01:31]} 16. Ng3 {[%clk 0:02:12]}  Bg6 {[%clk 0:01:27]} 17. c4 {[%clk 0:02:03]}  Rae8 {[%clk 0:01:14]} 18. cxd5 {[%clk 0:01:57]}  cxd5 {[%clk 0:01:15]} 19. Bb3 {[%clk 0:01:57]}  Bf7 {[%clk 0:00:58]} 20. Be3 {[%clk 0:01:45]}  b6 {[%clk 0:00:49]} 21. Rac1 {[%clk 0:01:42]}  Nf6 {[%clk 0:00:43]} 22. Qf3 {[%clk 0:01:23]}  Be6 {[%clk 0:00:34]} 23. Qe2 {[%clk 0:01:17]}  Rc8 {[%clk 0:00:25]} 24. Nh5 {[%clk 0:01:15]}  Qf7 {[%clk 0:00:08]} 25. Nxf6+ {[%clk 0:01:11]}  Qxf6 {[%clk 0:00:08]} 26. Rxc8 {[%clk 0:01:05]}  Rxc8 {[%clk 0:00:08]} 27. Rc1 {[%clk 0:01:05]}  Rxc1+ {[%clk 0:00:08]} 28. Bxc1 {[%clk 0:01:06]}  Qf7 {[%clk 0:00:08]} 29. Bd2 {[%clk 0:01:03]}  Qc7 {[%clk 0:00:07]} 30. Qf3 {[%clk 0:00:57]}  Qf7 {[%clk 0:00:05]} 31. Qxf7+ {[%clk 0:00:56]}  Kxf7 {[%clk 0:00:05]} 32. Kf1 {[%clk 0:00:56]}  Ke7 {[%clk 0:00:05]} 33. Ke2 {[%clk 0:00:55]}  Bc5 {[%clk 0:00:05]} 34. Be3 {[%clk 0:00:54]}  Kd6 {[%clk 0:00:05]} 35. Bxc5+ {[%clk 0:00:54]}  Kxc5 {[%clk 0:00:05]} 36. Ke3 {[%clk 0:00:49]}  Bf5 {[%clk 0:00:06]} 37. h4 {[%clk 0:00:45]}  g5 {[%clk 0:00:05]} 38. hxg5 {[%clk 0:00:45]}  hxg5 {[%clk 0:00:05]} 39. g3 {[%clk 0:00:45]}  d4+ {[%clk 0:00:05]} 40. Kd2 {[%clk 0:00:45]}  g4 {[%clk 0:00:05]} 41. Bd1 {[%clk 0:00:44]}  Kd5 {[%clk 0:00:05]} 42. Bb3+ {[%clk 0:00:43]}  Kd6 {[%clk 0:00:04]} 43. Bd1 {[%clk 0:00:42]}  Kd5 {[%clk 0:00:05]} 44. Bb3+ {[%clk 0:00:42]}  Kd6 {[%clk 0:00:05]} 45. a3 {[%clk 0:00:39]}  e4 {[%clk 0:00:05]} 46. dxe4 {[%clk 0:00:38]}  Bxe4 {[%clk 0:00:05]} 47. Bd1 {[%clk 0:00:38]}  Bf5 {[%clk 0:00:05]} 48. Be2 {[%clk 0:00:38]}  Ke5 {[%clk 0:00:05]} 49. Bd3 {[%clk 0:00:37]}  Bxd3 {[%clk 0:00:04]} 50. Kxd3 {[%clk 0:00:38]}  Kd5 {[%clk 0:00:04]} 51. b3 {[%clk 0:00:37]}  b5 {[%clk 0:00:04]} 52. Kd2 {[%clk 0:00:35]}  a6 {[%clk 0:00:04]} 53. Kd3 {[%clk 0:00:33]}  Ke5 {[%clk 0:00:04]} 54. Kd2 {[%clk 0:00:29]}  Ke4 {[%clk 0:00:04]} 55. Ke2 {[%clk 0:00:28]}  d3+ {[%clk 0:00:04]} 56. Kd2 {[%clk 0:00:28]}  Kd4 {[%clk 0:00:04]} 57. a4 {[%clk 0:00:26]}  b4 {[%clk 0:00:04]} 58. a5 {[%clk 0:00:24]}  Ke4 {[%clk 0:00:04]} 59. Kd1 {[%clk 0:00:21]}  Kf3 {[%clk 0:00:04]} 60. Kd2 {[%clk 0:00:20]}  Kxf2 {[%clk 0:00:04]} 61. Kxd3 {[%clk 0:00:20]}  Kxg3 {[%clk 0:00:04]} 62. Kc4 {[%clk 0:00:21]}  Kf4 {[%clk 0:00:05]} 63. Kxb4 {[%clk 0:00:22]}  g3 {[%clk 0:00:05]} 64. Kc5 {[%clk 0:00:22]}  g2 {[%clk 0:00:05]} 65. b4 {[%clk 0:00:22]}  g1=Q+ {[%clk 0:00:05]} 66. Kc6 {[%clk 0:00:22]}  Qd4 {[%clk 0:00:05]} 67. Kb7 {[%clk 0:00:22]}  Qxb4+ {[%clk 0:00:05]} 68. Kxa6 {[%clk 0:00:23]}  Ke5 {[%clk 0:00:05]} 69. Ka7 {[%clk 0:00:23]}  Kd6 {[%clk 0:00:05]} 0-1


[Site "https://www.chess.com"]

[Event "Titled Tuesday Blitz October 11 Late 2022"]
[White "Janaszak, Dawid"]
[Black "Baskakov, Egor"]
[WhiteFideId "1119206"]
[BlackFideId "24197866"]
[WhiteElo "2226"]
[BlackElo "2211"]
[Result "0-1"]
[Round "09"]
[TimeControl "180+1"]
[Date "2022.10.11"]
[WhiteClock "0:00:02"]
[BlackClock "0:00:26"]

1. e4 {[%clk 0:03:00]}  c5 {[%clk 0:02:59]} 2. Nc3 {[%clk 0:03:00]}  Nc6 {[%clk 0:02:58]} 3. Bc4 {[%clk 0:02:59]}  g6 {[%clk 0:02:57]} 4. h4 {[%clk 0:02:55]}  h6 {[%clk 0:02:55]} 5. h5 {[%clk 0:02:54]}  g5 {[%clk 0:02:53]} 6. d3 {[%clk 0:02:53]}  Bg7 {[%clk 0:02:52]} 7. f4 {[%clk 0:02:53]}  gxf4 {[%clk 0:02:45]} 8. Bxf4 {[%clk 0:02:54]}  d6 {[%clk 0:02:42]} 9. Nf3 {[%clk 0:02:51]}  Nf6 {[%clk 0:02:43]} 10. Qd2 {[%clk 0:02:46]}  Bg4 {[%clk 0:02:42]} 11. O-O-O {[%clk 0:02:44]}  Nxh5 {[%clk 0:02:41]} 12. Be3 {[%clk 0:02:30]}  Nd4 {[%clk 0:02:40]} 13. Rdf1 {[%clk 0:02:20]}  Bxf3 {[%clk 0:02:33]} 14. gxf3 {[%clk 0:02:16]}  Ng3 {[%clk 0:02:34]} 15. Qg2 {[%clk 0:01:56]}  Nxf1 {[%clk 0:02:25]} 16. Qxg7 {[%clk 0:01:52]}  Nxe3 {[%clk 0:02:26]} 17. Bxf7+ {[%clk 0:01:11]}  Kd7 {[%clk 0:02:24]} 18. e5 {[%clk 0:01:01]}  Qf8 {[%clk 0:02:00]} 19. Qg6 {[%clk 0:01:01]}  Rg8 {[%clk 0:01:46]} 20. Bxg8 {[%clk 0:00:23]}  Qxg8 {[%clk 0:01:44]} 21. Qe4 {[%clk 0:00:23]}  Qg2 {[%clk 0:01:34]} 22. Qxb7+ {[%clk 0:00:17]}  Ke6 {[%clk 0:01:31]} 23. Rxh6+ {[%clk 0:00:16]}  Kf7 {[%clk 0:01:24]} 24. e6+ {[%clk 0:00:14]}  Kg7 {[%clk 0:00:42]} 25. Qxe7+ {[%clk 0:00:09]}  Kxh6 {[%clk 0:00:42]} 26. Qf6+ {[%clk 0:00:05]}  Kh5 {[%clk 0:00:38]} 27. Qf7+ {[%clk 0:00:03]}  Kh4 {[%clk 0:00:37]} 28. Qh7+ {[%clk 0:00:02]}  Kg3 {[%clk 0:00:37]} 29. Ne4+ {[%clk 0:00:02]}  Kxf3 {[%clk 0:00:37]} 30. Qh5+ {[%clk 0:00:02]}  Ng4 {[%clk 0:00:30]} 31. Nd2+ {[%clk 0:00:02]}  Ke2 {[%clk 0:00:26]} 0-1


[Site "https://www.chess.com"]

[Event "Titled Tuesday Blitz October 11 Late 2022"]
[White "Jimenez, Joaquin"]
[Black "Har-Zvi, Ronen"]
[WhiteFideId "109860"]
[BlackFideId "2801485"]
[WhiteElo "2163"]
[BlackElo "2523"]
[Result "0-1"]
[Round "09"]
[TimeControl "180+1"]
[Date "2022.10.12"]
[WhiteClock "0:01:37"]
[BlackClock "0:02:42"]

1. e4 {[%clk 0:03:00]}  c6 {[%clk 0:03:00]} 2. d4 {[%clk 0:02:59]}  d5 {[%clk 0:03:01]} 3. Nd2 {[%clk 0:03:00]}  dxe4 {[%clk 0:03:01]} 4. Nxe4 {[%clk 0:03:01]}  Nf6 {[%clk 0:03:02]} 5. Ng3 {[%clk 0:03:00]}  h5 {[%clk 0:03:01]} 6. h4 {[%clk 0:03:00]}  Bg4 {[%clk 0:03:00]} 7. Qd3 {[%clk 0:03:00]}  Nbd7 {[%clk 0:02:59]} 8. Bg5 {[%clk 0:02:59]}  Qa5+ {[%clk 0:02:58]} 9. Bd2 {[%clk 0:02:56]}  Qb6 {[%clk 0:02:58]} 10. Bc3 {[%clk 0:02:50]}  g6 {[%clk 0:02:55]} 11. f3 {[%clk 0:02:48]}  Be6 {[%clk 0:02:54]} 12. N1e2 {[%clk 0:02:45]}  Bh6 {[%clk 0:02:52]} 13. Ne4 {[%clk 0:02:35]}  O-O-O {[%clk 0:02:52]} 14. Ng5 {[%clk 0:02:27]}  Bf5 {[%clk 0:02:52]} 15. Qd2 {[%clk 0:02:25]}  Nd5 {[%clk 0:02:51]} 16. O-O-O {[%clk 0:02:20]}  Nxc3 {[%clk 0:02:42]} 17. Qxc3 {[%clk 0:02:16]}  f6 {[%clk 0:02:42]} 18. f4 {[%clk 0:02:07]}  fxg5 {[%clk 0:02:42]} 19. hxg5 {[%clk 0:02:08]}  Bg7 {[%clk 0:02:42]} 20. Ng3 {[%clk 0:02:02]}  Bg4 {[%clk 0:02:42]} 21. Rd2 {[%clk 0:02:00]}  Rhf8 {[%clk 0:02:42]} 22. Qe3 {[%clk 0:01:52]}  e5 {[%clk 0:02:43]} 23. fxe5 {[%clk 0:01:48]}  Bxe5 {[%clk 0:02:43]} 24. Ne2 {[%clk 0:01:37]}  Bxe2 {[%clk 0:02:42]} 25. Qxe2 {[%clk 0:01:37]}  Bf4 {[%clk 0:02:42]} 0-1


[Site "https://www.chess.com"]

[Event "Titled Tuesday Blitz October 11 Late 2022"]
[White "Kanter, Eduard"]
[Black "Jensen, Matthew R"]
[WhiteFideId "4103963"]
[BlackFideId "2018110"]
[WhiteElo "2267"]
[BlackElo "2306"]
[Result "1-0"]
[Round "09"]
[TimeControl "180+1"]
[Date "2022.10.12"]
[WhiteClock "0:00:31"]
[BlackClock "0:00:06"]

1. d4 {[%clk 0:03:00]}  d5 {[%clk 0:02:59]} 2. c4 {[%clk 0:03:00]}  c6 {[%clk 0:02:59]} 3. Nf3 {[%clk 0:03:00]}  e6 {[%clk 0:02:59]} 4. g3 {[%clk 0:02:59]}  dxc4 {[%clk 0:02:58]} 5. Bg2 {[%clk 0:02:58]}  b5 {[%clk 0:02:59]} 6. Ne5 {[%clk 0:02:57]}  Bb7 {[%clk 0:02:59]} 7. O-O {[%clk 0:02:55]}  Nf6 {[%clk 0:02:53]} 8. Nc3 {[%clk 0:02:53]}  Nd5 {[%clk 0:02:52]} 9. a4 {[%clk 0:02:53]}  b4 {[%clk 0:02:50]} 10. Ne4 {[%clk 0:02:49]}  Nd7 {[%clk 0:02:45]} 11. Nxc4 {[%clk 0:02:48]}  N7f6 {[%clk 0:02:36]} 12. Nc5 {[%clk 0:02:39]}  Bxc5 {[%clk 0:02:34]} 13. dxc5 {[%clk 0:02:39]}  O-O {[%clk 0:02:34]} 14. e4 {[%clk 0:02:20]}  Ne7 {[%clk 0:02:28]} 15. Nd6 {[%clk 0:02:16]}  Ba6 {[%clk 0:02:20]} 16. Re1 {[%clk 0:02:17]}  Nc8 {[%clk 0:02:05]} 17. Bf4 {[%clk 0:02:05]}  Qa5 {[%clk 0:01:49]} 18. Qc2 {[%clk 0:01:56]}  Nh5 {[%clk 0:00:59]} 19. Be3 {[%clk 0:01:48]}  Ne7 {[%clk 0:00:48]} 20. b3 {[%clk 0:01:42]}  Rfd8 {[%clk 0:00:45]} 21. Red1 {[%clk 0:01:35]}  e5 {[%clk 0:00:33]} 22. Bg5 {[%clk 0:01:29]}  f6 {[%clk 0:00:30]} 23. Be3 {[%clk 0:01:27]}  g6 {[%clk 0:00:29]} 24. Bh3 {[%clk 0:01:24]}  Ng7 {[%clk 0:00:27]} 25. Rac1 {[%clk 0:01:24]}  Qc7 {[%clk 0:00:27]} 26. Nc4 {[%clk 0:01:13]}  Bxc4 {[%clk 0:00:23]} 27. Qxc4+ {[%clk 0:01:13]}  Kh8 {[%clk 0:00:23]} 28. Qxb4 {[%clk 0:01:13]}  Rab8 {[%clk 0:00:20]} 29. Qc4 {[%clk 0:01:12]}  f5 {[%clk 0:00:18]} 30. Bg5 {[%clk 0:01:07]}  Rxd1+ {[%clk 0:00:13]} 31. Rxd1 {[%clk 0:01:07]}  Rd8 {[%clk 0:00:14]} 32. Re1 {[%clk 0:01:02]}  Rd7 {[%clk 0:00:05]} 33. Qf7 {[%clk 0:00:57]}  Ng8 {[%clk 0:00:06]} 34. Qc4 {[%clk 0:00:48]}  Rf7 {[%clk 0:00:06]} 35. b4 {[%clk 0:00:39]}  h6 {[%clk 0:00:07]} 36. Bd2 {[%clk 0:00:36]}  g5 {[%clk 0:00:07]} 37. exf5 {[%clk 0:00:35]}  Nxf5 {[%clk 0:00:06]} 38. Bc3 {[%clk 0:00:34]}  Qe7 {[%clk 0:00:06]} 39. Rxe5 {[%clk 0:00:31]} 1-0


[Site "https://www.chess.com"]

[Event "Titled Tuesday Blitz October 11 Late 2022"]
[White "Kouskoutis, Georgios-Alexandros"]
[Black "Pinheiro, Iung Alicio de O."]
[WhiteFideId "4234049"]
[BlackFideId "2104350"]
[WhiteElo "2187"]
[BlackElo "2283"]
[Result "0-1"]
[Round "09"]
[TimeControl "180+1"]
[Date "2022.10.11"]
[WhiteClock "0:00:02"]
[BlackClock "0:00:13"]

1. c4 {[%clk 0:03:00]}  e5 {[%clk 0:02:54]} 2. g3 {[%clk 0:03:00]}  Bc5 {[%clk 0:02:52]} 3. Bg2 {[%clk 0:03:00]}  d6 {[%clk 0:02:51]} 4. Nc3 {[%clk 0:02:59]}  a6 {[%clk 0:02:51]} 5. e3 {[%clk 0:02:59]}  Nc6 {[%clk 0:02:51]} 6. Nge2 {[%clk 0:03:00]}  Ba7 {[%clk 0:02:49]} 7. d4 {[%clk 0:02:59]}  h5 {[%clk 0:02:46]} 8. h4 {[%clk 0:02:56]}  Bg4 {[%clk 0:02:45]} 9. d5 {[%clk 0:02:38]}  Nce7 {[%clk 0:02:22]} 10. Qd3 {[%clk 0:02:15]}  c6 {[%clk 0:02:00]} 11. f3 {[%clk 0:01:48]}  Bf5 {[%clk 0:01:54]} 12. e4 {[%clk 0:01:48]}  Bc8 {[%clk 0:01:46]} 13. Be3 {[%clk 0:01:47]}  Bxe3 {[%clk 0:01:40]} 14. Qxe3 {[%clk 0:01:48]}  Nf6 {[%clk 0:01:40]} 15. O-O {[%clk 0:01:32]}  cxd5 {[%clk 0:01:32]} 16. cxd5 {[%clk 0:01:31]}  O-O {[%clk 0:01:26]} 17. Kh2 {[%clk 0:01:14]}  b5 {[%clk 0:01:19]} 18. b4 {[%clk 0:01:06]}  Bd7 {[%clk 0:01:18]} 19. Bh3 {[%clk 0:01:02]}  Bxh3 {[%clk 0:00:55]} 20. Kxh3 {[%clk 0:01:03]}  Nc8 {[%clk 0:00:47]} 21. a4 {[%clk 0:01:00]}  bxa4 {[%clk 0:00:37]} 22. Nxa4 {[%clk 0:00:59]}  Nd7 {[%clk 0:00:34]} 23. Kg2 {[%clk 0:00:56]}  Ncb6 {[%clk 0:00:33]} 24. Nxb6 {[%clk 0:00:53]}  Nxb6 {[%clk 0:00:32]} 25. Rfc1 {[%clk 0:00:53]}  Qb8 {[%clk 0:00:28]} 26. Rc6 {[%clk 0:00:48]}  Nd7 {[%clk 0:00:28]} 27. Qc3 {[%clk 0:00:41]}  f5 {[%clk 0:00:21]} 28. exf5 {[%clk 0:00:28]}  Nf6 {[%clk 0:00:21]} 29. Raxa6 {[%clk 0:00:22]}  Rxa6 {[%clk 0:00:21]} 30. Rxa6 {[%clk 0:00:22]}  e4 {[%clk 0:00:20]} 31. Nf4 {[%clk 0:00:19]}  exf3+ {[%clk 0:00:19]} 32. Kxf3 {[%clk 0:00:16]}  Qb5 {[%clk 0:00:18]} 33. Qd3 {[%clk 0:00:14]}  Qxb4 {[%clk 0:00:18]} 34. Ra7 {[%clk 0:00:12]}  Rc8 {[%clk 0:00:15]} 35. Kg2 {[%clk 0:00:06]}  Qb2+ {[%clk 0:00:14]} 36. Kh3 {[%clk 0:00:05]}  Rc2 {[%clk 0:00:14]} 37. Ra8+ {[%clk 0:00:02]}  Kh7 {[%clk 0:00:14]} 38. g4 {[%clk 0:00:02]}  Rh2+ {[%clk 0:00:12]} 39. Kg3 {[%clk 0:00:02]}  Qf2# {[%clk 0:00:13]} 0-1


[Site "https://www.chess.com"]

[Event "Titled Tuesday Blitz October 11 Late 2022"]
[White "Krstic, Milos"]
[Black "Nozdrachev, Leonid"]
[WhiteFideId "954888"]
[BlackFideId "24113433"]
[WhiteElo "2194"]
[BlackElo "2249"]
[Result "0-1"]
[Round "09"]
[TimeControl "180+1"]
[Date "2022.10.12"]
[WhiteClock "0:01:34"]
[BlackClock "0:01:25"]

1. e4 {[%clk 0:03:00]}  d6 {[%clk 0:03:00]} 2. d4 {[%clk 0:03:00]}  Nf6 {[%clk 0:03:01]} 3. Nc3 {[%clk 0:03:01]}  e5 {[%clk 0:03:01]} 4. dxe5 {[%clk 0:03:01]}  dxe5 {[%clk 0:03:02]} 5. Qxd8+ {[%clk 0:03:02]}  Kxd8 {[%clk 0:03:01]} 6. Bc4 {[%clk 0:03:03]}  Bb4 {[%clk 0:03:00]} 7. f3 {[%clk 0:02:54]}  Ke7 {[%clk 0:02:59]} 8. Ne2 {[%clk 0:02:54]}  Be6 {[%clk 0:02:59]} 9. Bxe6 {[%clk 0:02:53]}  Kxe6 {[%clk 0:03:00]} 10. Be3 {[%clk 0:02:53]}  Nc6 {[%clk 0:03:00]} 11. O-O-O {[%clk 0:02:53]}  Rhd8 {[%clk 0:03:00]} 12. a3 {[%clk 0:02:51]}  Bxc3 {[%clk 0:02:59]} 13. Nxc3 {[%clk 0:02:51]}  Nd4 {[%clk 0:02:58]} 14. Rhe1 {[%clk 0:02:49]}  c6 {[%clk 0:02:57]} 15. Ne2 {[%clk 0:02:47]}  Nxe2+ {[%clk 0:02:56]} 16. Rxe2 {[%clk 0:02:47]}  Rxd1+ {[%clk 0:02:56]} 17. Kxd1 {[%clk 0:02:48]}  Rd8+ {[%clk 0:02:56]} 18. Rd2 {[%clk 0:02:49]}  Rxd2+ {[%clk 0:02:56]} 19. Kxd2 {[%clk 0:02:50]}  a6 {[%clk 0:02:57]} 20. Kd3 {[%clk 0:02:48]}  b5 {[%clk 0:02:50]} 21. c4 {[%clk 0:02:48]}  Ne8 {[%clk 0:02:49]} 22. cxb5 {[%clk 0:02:47]}  cxb5 {[%clk 0:02:50]} 23. Kc3 {[%clk 0:02:45]}  Nd6 {[%clk 0:02:50]} 24. b3 {[%clk 0:02:43]}  Kd7 {[%clk 0:02:48]} 25. Kb4 {[%clk 0:02:40]}  Kc6 {[%clk 0:02:48]} 26. Ka5 {[%clk 0:02:39]}  Kb7 {[%clk 0:02:43]} 27. Bc5 {[%clk 0:02:39]}  Ne8 {[%clk 0:02:41]} 28. g4 {[%clk 0:02:25]}  g6 {[%clk 0:01:48]} 29. h4 {[%clk 0:02:22]}  Nc7 {[%clk 0:01:46]} 30. Bd6 {[%clk 0:02:17]}  Ne6 {[%clk 0:01:45]} 31. Bxe5 {[%clk 0:01:48]}  Nd8 {[%clk 0:01:44]} 32. Kb4 {[%clk 0:01:39]}  Nc6+ {[%clk 0:01:43]} 33. Kc5 {[%clk 0:01:40]}  Nxe5 {[%clk 0:01:44]} 34. f4 {[%clk 0:01:39]}  Nxg4 {[%clk 0:01:40]} 35. Kd6 {[%clk 0:01:39]}  Nf2 {[%clk 0:01:26]} 36. f5 {[%clk 0:01:34]}  Nxe4+ {[%clk 0:01:25]} 0-1


[Site "https://www.chess.com"]

[Event "Titled Tuesday Blitz October 11 Late 2022"]
[White "Leschinsky, Gary"]
[Black "Izuzquiza Gonzalez, Javier"]
[WhiteFideId "30951321"]
[BlackFideId "3101029"]
[WhiteElo "1855"]
[BlackElo "2034"]
[Result "0-1"]
[Round "09"]
[TimeControl "180+1"]
[Date "2022.10.12"]
[WhiteClock "0:00:20"]
[BlackClock "0:00:17"]

1. d4 {[%clk 0:03:00]}  Nf6 {[%clk 0:02:59]} 2. c4 {[%clk 0:02:58]}  g6 {[%clk 0:02:58]} 3. Nc3 {[%clk 0:02:53]}  d5 {[%clk 0:02:58]} 4. cxd5 {[%clk 0:02:43]}  Nxd5 {[%clk 0:02:59]} 5. e4 {[%clk 0:02:43]}  Nxc3 {[%clk 0:02:59]} 6. bxc3 {[%clk 0:02:44]}  Bg7 {[%clk 0:02:59]} 7. Nf3 {[%clk 0:02:38]}  c5 {[%clk 0:02:58]} 8. Be2 {[%clk 0:02:37]}  O-O {[%clk 0:02:54]} 9. O-O {[%clk 0:02:37]}  Nc6 {[%clk 0:02:53]} 10. Be3 {[%clk 0:02:36]}  Qa5 {[%clk 0:02:35]} 11. d5 {[%clk 0:02:25]}  Ne5 {[%clk 0:02:34]} 12. Nxe5 {[%clk 0:02:20]}  Bxe5 {[%clk 0:02:35]} 13. c4 {[%clk 0:02:20]}  Bxa1 {[%clk 0:02:31]} 14. Qxa1 {[%clk 0:02:21]}  f6 {[%clk 0:02:20]} 15. f4 {[%clk 0:02:16]}  Bd7 {[%clk 0:02:14]} 16. h4 {[%clk 0:01:57]}  Qa3 {[%clk 0:02:10]} 17. Rf3 {[%clk 0:01:42]}  Bg4 {[%clk 0:02:05]} 18. Kf2 {[%clk 0:01:27]}  Bxf3 {[%clk 0:02:04]} 19. Bxf3 {[%clk 0:01:28]}  b5 {[%clk 0:01:38]} 20. h5 {[%clk 0:01:18]}  bxc4 {[%clk 0:01:34]} 21. hxg6 {[%clk 0:01:13]}  hxg6 {[%clk 0:01:35]} 22. Qh1 {[%clk 0:01:11]}  Kg7 {[%clk 0:01:32]} 23. Qh3 {[%clk 0:01:03]}  Qxa2+ {[%clk 0:01:21]} 24. Be2 {[%clk 0:01:00]}  c3 {[%clk 0:01:02]} 25. f5 {[%clk 0:00:49]}  Rh8 {[%clk 0:00:55]} 26. Qg3 {[%clk 0:00:49]}  Rag8 {[%clk 0:00:32]} 27. Qxg6+ {[%clk 0:00:44]}  Kf8 {[%clk 0:00:32]} 28. Bh6+ {[%clk 0:00:45]}  Rxh6 {[%clk 0:00:30]} 29. Qxh6+ {[%clk 0:00:46]}  Kf7 {[%clk 0:00:29]} 30. Qh7+ {[%clk 0:00:30]}  Rg7 {[%clk 0:00:27]} 31. Qh5+ {[%clk 0:00:27]}  Kf8 {[%clk 0:00:27]} 32. Qh8+ {[%clk 0:00:26]}  Rg8 {[%clk 0:00:26]} 33. Qh6+ {[%clk 0:00:26]}  Ke8 {[%clk 0:00:25]} 34. Qh5+ {[%clk 0:00:26]}  Kd7 {[%clk 0:00:23]} 35. Qf7 {[%clk 0:00:26]}  Rxg2+ {[%clk 0:00:20]} 36. Kxg2 {[%clk 0:00:25]}  Qxe2+ {[%clk 0:00:20]} 37. Kg3 {[%clk 0:00:25]}  Qe3+ {[%clk 0:00:20]} 38. Kh2 {[%clk 0:00:25]}  Qf4+ {[%clk 0:00:19]} 39. Kh3 {[%clk 0:00:25]}  Qxe4 {[%clk 0:00:18]} 40. d6 {[%clk 0:00:21]}  Qxf5+ {[%clk 0:00:17]} 41. Kg3 {[%clk 0:00:20]}  Qe5+ {[%clk 0:00:17]} 42. Kh3 {[%clk 0:00:20]}  Qxd6 {[%clk 0:00:17]} 0-1


[Site "https://www.chess.com"]

[Event "Titled Tuesday Blitz October 11 Late 2022"]
[White "Machidon, Cristi"]
[Black "Sztokbant, Bernardo Vainzoff"]
[WhiteFideId "13904590"]
[BlackFideId "2115956"]
[WhiteElo "2312"]
[BlackElo "2171"]
[Result "1-0"]
[Round "09"]
[TimeControl "180+1"]
[Date "2022.10.12"]
[WhiteClock "0:00:46"]
[BlackClock "0:00:01"]

1. d4 {[%clk 0:02:59]}  Nf6 {[%clk 0:02:58]} 2. c4 {[%clk 0:02:59]}  g6 {[%clk 0:02:57]} 3. Nc3 {[%clk 0:02:59]}  d5 {[%clk 0:02:57]} 4. Nf3 {[%clk 0:02:57]}  Bg7 {[%clk 0:02:57]} 5. Bf4 {[%clk 0:02:56]}  O-O {[%clk 0:02:57]} 6. e3 {[%clk 0:02:57]}  c5 {[%clk 0:02:56]} 7. dxc5 {[%clk 0:02:56]}  Qa5 {[%clk 0:02:56]} 8. Rc1 {[%clk 0:02:52]}  Ne4 {[%clk 0:02:50]} 9. Be5 {[%clk 0:02:49]}  Bxe5 {[%clk 0:02:23]} 10. Nxe5 {[%clk 0:02:50]}  Nxc3 {[%clk 0:02:20]} 11. Rxc3 {[%clk 0:02:50]}  Qxc5 {[%clk 0:01:59]} 12. cxd5 {[%clk 0:02:46]}  Qa5 {[%clk 0:01:57]} 13. Nc4 {[%clk 0:02:40]}  Qd8 {[%clk 0:01:49]} 14. Be2 {[%clk 0:02:38]}  Nd7 {[%clk 0:01:46]} 15. O-O {[%clk 0:02:36]}  Nf6 {[%clk 0:01:43]} 16. Bf3 {[%clk 0:02:37]}  Bf5 {[%clk 0:01:41]} 17. Qd4 {[%clk 0:02:35]}  Bd7 {[%clk 0:01:24]} 18. e4 {[%clk 0:02:35]}  Bb5 {[%clk 0:01:20]} 19. e5 {[%clk 0:02:33]}  Nd7 {[%clk 0:01:20]} 20. Rd1 {[%clk 0:02:24]}  Rc8 {[%clk 0:01:18]} 21. b3 {[%clk 0:02:24]}  b6 {[%clk 0:01:09]} 22. h4 {[%clk 0:02:24]}  Qc7 {[%clk 0:01:02]} 23. Rdc1 {[%clk 0:01:34]}  Qb8 {[%clk 0:00:47]} 24. Bg4 {[%clk 0:01:28]}  Rcd8 {[%clk 0:00:30]} 25. f4 {[%clk 0:01:27]}  Nc5 {[%clk 0:00:19]} 26. h5 {[%clk 0:01:23]}  Qb7 {[%clk 0:00:13]} 27. Ne3 {[%clk 0:01:21]}  Qa6 {[%clk 0:00:11]} 28. a4 {[%clk 0:01:20]}  Be2 {[%clk 0:00:11]} 29. Kf2 {[%clk 0:01:04]}  Bxg4 {[%clk 0:00:11]} 30. Nxg4 {[%clk 0:01:05]}  e6 {[%clk 0:00:05]} 31. Nf6+ {[%clk 0:01:04]}  Kh8 {[%clk 0:00:05]} 32. d6 {[%clk 0:01:04]}  Qb7 {[%clk 0:00:04]} 33. Rh1 {[%clk 0:01:01]}  g5 {[%clk 0:00:01]} 34. fxg5 {[%clk 0:01:00]}  Rg8 {[%clk 0:00:02]} 35. Qf4 {[%clk 0:00:58]}  Rg7 {[%clk 0:00:01]} 36. b4 {[%clk 0:00:57]}  Nxa4 {[%clk 0:00:01]} 37. Rf3 {[%clk 0:00:54]}  Nb2 {[%clk 0:00:01]} 38. h6 {[%clk 0:00:53]}  Rg6 {[%clk 0:00:01]} 39. Ne4 {[%clk 0:00:51]}  Rd7 {[%clk 0:00:01]} 40. Rc1 {[%clk 0:00:49]}  Qa6 {[%clk 0:00:01]} 41. Rc7 {[%clk 0:00:47]}  Nd3+ {[%clk 0:00:01]} 42. Rxd3 {[%clk 0:00:47]}  Qxd3 {[%clk 0:00:02]} 43. Rc8+ {[%clk 0:00:47]}  Rg8 {[%clk 0:00:01]} 44. Qf6# {[%clk 0:00:46]} 1-0


[Site "https://www.chess.com"]